bitfinex-derivatives/quotes_BTCF0:USTF0_20250809
["timestamp","ask_amount","ask_price","bid_price","bid_amount"]
[1754752162513,0.68074632,117010.0,117000.0,1.62153362]
[1754752163015,0.69489632,117010.0,117000.0,1.62153362]
[1754752163325,0.3637899,117010.0,117000.0,1.62153362]
[1754752163528,0.69489632,117010.0,117000.0,1.62153362]
[1754752163719,0.69489632,117010.0,117000.0,1.62453362]
[1754752163925,0.71033632,117010.0,117000.0,1.62453362]
[1754752164125,0.71033632,117010.0,117000.0,1.62653362]
[1754752164523,0.3792299,117010.0,117000.0,1.62653362]
[1754752164723,0.71033632,117010.0,117000.0,1.62653362]
[1754752164922,0.61505632,117010.0,117000.0,1.95764004]
[1754752165123,0.2839499,117010.0,117000.0,1.95764004]
[1754752165323,0.64982632,117010.0,117000.0,1.95764004]
[1754752165735,0.64982632,117010.0,117000.0,1.62653362]
[1754752166730,0.68074632,117010.0,117000.0,1.62653362]
[1754752167027,0.71033632,117010.0,117000.0,1.62653362]
[1754752167429,0.3792299,117010.0,117000.0,1.62653362]
[1754752167628,0.71033632,117010.0,117000.0,1.62653362]
[1754752168730,0.3792299,117010.0,117000.0,1.2954272]
[1754752168921,0.3792299,117010.0,117000.0,1.62653362]
[1754752169124,0.71033632,117010.0,117000.0,1.62653362]
[1754752171424,0.3792299,117010.0,117000.0,1.2954272]
[1754752171625,0.71033632,117010.0,117000.0,1.62653362]
[1754752172932,0.71033632,117010.0,117000.0,1.2954272]
[1754752173127,0.71033632,117010.0,117000.0,1.62653362]
[1754752174134,0.70543632,117010.0,117000.0,1.62653362]
[1754752175033,0.3743299,117010.0,117000.0,1.62653362]
[1754752175235,0.70543632,117010.0,117000.0,1.62653362]
[1754752175427,0.3743299,117010.0,117000.0,1.62653362]
[1754752175623,0.70543632,117010.0,117000.0,1.62653362]
[1754752176132,0.70543632,117010.0,117000.0,1.2954272]
[1754752176332,0.70543632,117010.0,117000.0,1.62653362]
[1754752179234,0.71033632,117010.0,117000.0,1.62653362]
[1754752179737,0.3792299,117010.0,117000.0,1.62653362]
[1754752179937,0.71033632,117010.0,117000.0,1.62653362]
[1754752180533,0.3792299,117010.0,117000.0,1.62653362]
[1754752180836,0.71033632,117010.0,117000.0,1.62653362]
[1754752182135,0.71033632,117010.0,117000.0,1.2954272]
[1754752182534,0.71033632,117010.0,117000.0,1.62653362]
[1754752185441,0.71033632,117010.0,117000.0,1.2954272]
[1754752185640,0.71033632,117010.0,117000.0,1.2656172]
[1754752185833,1.04144274,117010.0,117000.0,1.18016]
[1754752186843,0.71033632,117010.0,117000.0,1.18016]
[1754752187538,0.71033632,117010.0,117000.0,1.2626172]
[1754752188338,0.71033632,117010.0,117000.0,1.17716]
[1754752188840,0.71170632,117010.0,117000.0,1.2626172]
[1754752191443,0.71170632,117010.0,117000.0,0.9184672]
[1754752191633,0.3805999,117010.0,117000.0,0.9184672]
[1754752191831,0.71170632,117010.0,117000.0,0.9184672]
[1754752192342,0.3805999,117010.0,117000.0,0.9184672]
[1754752192542,0.71170632,117010.0,117000.0,0.9184672]
[1754752195145,0.3805999,117010.0,117000.0,0.9184672]
[1754752195342,0.71170632,117010.0,117000.0,0.9184672]
[1754752196643,0.3805999,117010.0,117000.0,0.9184672]
[1754752196851,0.71170632,117010.0,117000.0,0.9184672]
[1754752197440,0.71170632,117010.0,117000.0,0.83301]
[1754752197648,0.71170632,117010.0,117000.0,0.83101]
[1754752197842,1.04281274,117010.0,117000.0,0.83101]
[1754752198043,1.04281274,117010.0,117000.0,0.9164672]
[1754752198238,0.3805999,117010.0,117000.0,0.9164672]
[1754752198545,0.71170632,117010.0,117000.0,0.83101]
[1754752198745,0.71170632,117010.0,117000.0,0.9164672]
[1754752199246,0.3805999,117010.0,117000.0,0.9164672]
[1754752199544,0.71170632,117010.0,117000.0,0.9164672]
[1754752200256,0.3805999,117010.0,117000.0,0.9164672]
[1754752200542,0.71170632,117010.0,117000.0,0.9164672]
[1754752203347,0.3805999,117010.0,117000.0,0.9164672]
[1754752203544,0.71170632,117010.0,117000.0,0.9164672]
[1754752204949,0.71170632,117010.0,117000.0,0.83101]
[1754752206551,0.71170632,117010.0,117000.0,0.9164672]
[1754752207153,0.71170632,117010.0,117000.0,0.83101]
[1754752208351,0.71170632,117010.0,117000.0,0.9164672]
[1754752209854,0.71170632,117010.0,117000.0,0.83101]
[1754752211945,1.40361274,117010.0,117000.0,0.002]
[1754752212150,1.40361274,117010.0,117000.0,0.81364]
[1754752212353,1.40361274,117010.0,117000.0,0.002]
[1754752212852,1.40361274,117010.0,117000.0,1e-07]
[1754752213554,0.1332872,117000.0,116990.0,0.82862138]
[1754752213755,1.22655004,117000.0,116990.0,0.82862138]
[1754752214254,0.86575004,117000.0,116990.0,0.84502138]
[1754752215355,0.2035372,117000.0,116990.0,0.84602138]
[1754752215550,0.86575004,117000.0,116990.0,0.84602138]
[1754752216751,1.22655004,117000.0,116990.0,0.84602138]
[1754752217259,0.5643372,117000.0,116990.0,0.84602138]
[1754752217457,1.22655004,117000.0,116990.0,0.84602138]
[1754752220955,1.22655004,117000.0,116990.0,0.82962138]
[1754752227657,1.22655004,117000.0,116990.0,0.01806138]
[1754752232760,0.0854711,116980.0,116970.0,0.82797839]
[1754752233059,0.2035511,116980.0,116970.0,1.63865839]
[1754752233262,0.86576394,116980.0,116970.0,1.09254519]
[1754752233460,0.86576394,116980.0,116970.0,0.95312432]
[1754752233962,0.86576394,116980.0,116970.0,0.95612432]
[1754752234259,0.2035511,116980.0,116970.0,1.04160272]
[1754752234460,0.53565752,116980.0,116970.0,1.73250914]
[1754752234661,0.53565752,116980.0,116970.0,1.73350914]
[1754752234961,0.86676394,116980.0,116970.0,1.64803074]
[1754752235958,0.2045511,116980.0,116970.0,1.73350914]
[1754752236157,0.53465752,116980.0,116970.0,1.73150914]
[1754752241064,0.53465752,116980.0,116970.0,1.84642714]
[1754752241263,0.86576394,116980.0,116970.0,1.84642714]
[1754752241466,0.2035511,116980.0,116970.0,1.84642714]
[1754752241672,0.86576394,116980.0,116970.0,1.84642714]
[1754752242465,0.86576394,116980.0,116970.0,1.51532072]
[1754752242663,0.86576394,116980.0,116970.0,1.76094874]
[1754752244166,0.86576394,116980.0,116970.0,1.42984232]
[1754752244568,0.86576394,116980.0,116970.0,1.76094874]
[1754752245070,0.2035511,116980.0,116970.0,1.76094874]
[1754752245469,0.86576394,116980.0,116970.0,1.42984232]
[1754752245867,0.86576394,116980.0,116970.0,1.51532082]
[1754752246668,0.86576394,116980.0,116970.0,1.42984232]
[1754752246863,0.86576394,116980.0,116970.0,1.41556232]
[1754752247269,0.86576394,116980.0,116970.0,1.05476232]
[1754752247472,1.19687036,116980.0,116970.0,0.15842417]
[1754752247675,1.23146394,116980.0,116970.0,0.96850417]
[1754752248174,1.56257036,116980.0,116970.0,0.15842417]
[1754752248374,1.23146394,116980.0,116970.0,0.15842417]
[1754752249478,1.23346394,116980.0,116970.0,0.15742417]
[1754752249983,1.23246394,116980.0,116970.0,0.15742417]
[1754752250281,1.23546394,116980.0,116970.0,0.15842417]
[1754752256877,1.56657036,116980.0,116970.0,0.15842417]
[1754752257083,1.23546394,116980.0,116970.0,0.15842417]
[1754752257284,1.56657036,116980.0,116970.0,0.115918]
[1754752257876,1.23546394,116980.0,116970.0,0.115918]
[1754752260386,1.56657036,116980.0,116970.0,0.115918]
[1754752260582,1.56657036,116980.0,116970.0,0.057088]
[1754752260782,1.56657036,116980.0,116970.0,0.0299794]
[1754752260981,1.56657036,116980.0,116970.0,0.0005714]
[1754752261187,0.1327354,116960.0,116950.0,0.3771]
[1754752261389,0.2026628,116950.0,116940.0,2.14498087]
[1754752261592,0.2026628,116950.0,116940.0,0.20022682]
[1754752261593,0.53376922,116950.0,116940.0,0.20022682]
[1754752261893,0.53866922,116950.0,116940.0,0.85604595]
[1754752263487,0.2075628,116950.0,116940.0,0.85604595]
[1754752263793,0.53866922,116950.0,116940.0,1.56223237]
[1754752264184,0.53966922,116950.0,116940.0,1.34804395]
[1754752264378,0.53966922,116950.0,116940.0,1.31835037]
[1754752265189,0.53966922,116950.0,116940.0,1.67915037]
[1754752265390,0.53966922,116950.0,116940.0,1.34804395]
[1754752265792,0.53966922,116950.0,116940.0,1.35104395]
[1754752266186,0.2085628,116950.0,116940.0,1.35104395]
[1754752266486,0.53966922,116950.0,116940.0,1.68215037]
[1754752267182,0.2085628,116950.0,116940.0,1.68215037]
[1754752267381,0.53966922,116950.0,116940.0,1.35104395]
[1754752267581,0.53966922,116950.0,116940.0,1.68215037]
[1754752267990,0.53966922,116950.0,116940.0,1.32135037]
[1754752268187,0.53966922,116950.0,116940.0,1.68215037]
[1754752268991,0.53966922,116950.0,116940.0,1.35104395]
[1754752269691,0.53966922,116950.0,116940.0,0.99024395]
[1754752270490,0.2085628,116950.0,116940.0,0.99024395]
[1754752270783,0.53966922,116950.0,116940.0,0.99024395]
[1754752272993,0.53966922,116950.0,116940.0,0.97596395]
[1754752273194,0.87077564,116950.0,116940.0,0.97546395]
[1754752273596,0.53966922,116950.0,116940.0,0.97546395]
[1754752273894,0.53966922,116950.0,116940.0,0.98974395]
[1754752278798,0.53966922,116950.0,116940.0,1.43604405]
[1754752278995,0.42249922,116950.0,116940.0,1.07524405]
[1754752279200,0.54064922,116950.0,116940.0,1.76715047]
[1754752279496,0.0913928,116950.0,116940.0,2.09825689]
[1754752280001,0.3419601,116960.0,116950.0,0.0854928]
[1754752280200,0.3654401,116960.0,116950.0,0.4635826]
[1754752280494,0.3419601,116960.0,116950.0,0.79468902]
[1754752280699,0.2613673,116960.0,116950.0,0.79468902]
[1754752280886,0.2613673,116960.0,116950.0,0.4635826]
[1754752281090,0.2613673,116960.0,116950.0,0.79468902]
[1754752281290,0.2613673,116960.0,116950.0,0.79568902]
[1754752282491,0.2613673,116960.0,116950.0,0.79768902]
[1754752282698,0.2613673,116960.0,116950.0,0.90876019]
[1754752284303,0.2848473,116960.0,116950.0,0.90876019]
[1754752285404,0.2848473,116960.0,116950.0,1.02367819]
[1754752286201,0.2848473,116960.0,116950.0,0.5815006]
[1754752286509,0.3795173,116960.0,116950.0,0.5815006]
[1754752288211,0.82169489,116960.0,116950.0,0.5815006]
[1754752288402,0.3795173,116960.0,116950.0,0.5815006]
[1754752288798,0.3795173,116960.0,116950.0,1.02367819]
[1754752291403,0.3795173,116960.0,116950.0,0.5815006]
[1754752291603,0.3795173,116960.0,116950.0,0.1352078]
[1754752291808,0.82169489,116960.0,116950.0,0.1352078]
[1754752294011,0.81679489,116960.0,116950.0,0.1352078]
[1754752294711,0.81679489,116960.0,116950.0,0.4960078]
[1754752298920,0.82169489,116960.0,116950.0,0.4960078]
[1754752299517,0.82169489,116960.0,116950.0,0.4910078]
[1754752300810,0.3795173,116960.0,116950.0,0.4910078]
[1754752301007,0.82169489,116960.0,116950.0,0.4910078]
[1754752301618,0.3795173,116960.0,116950.0,0.4910078]
[1754752301915,0.3795173,116960.0,116950.0,1.01867739]
[1754752302117,0.3795173,116960.0,116950.0,0.73020067]
[1754752302318,0.82169489,116960.0,116950.0,0.73020067]
[1754752303715,0.82169489,116960.0,116950.0,0.5764998]
[1754752304319,0.3795173,116960.0,116950.0,0.5764998]
[1754752304520,0.82169489,116960.0,116950.0,0.5764998]
[1754752310219,0.3795173,116960.0,116950.0,0.5764998]
[1754752310419,0.82169489,116960.0,116950.0,0.5764998]
[1754752310622,0.71119731,116960.0,116950.0,0.90817981]
[1754752311012,0.71119731,116960.0,116950.0,1.06188068]
[1754752311219,0.3795173,116960.0,116950.0,0.73020067]
[1754752311518,0.71119731,116960.0,116950.0,1.06188068]
[1754752311724,0.71119731,116960.0,116950.0,0.73020067]
[1754752312021,0.71119731,116960.0,116950.0,1.06188068]
[1754752312321,1.04287732,116960.0,116950.0,1.06188068]
[1754752314221,1.04287732,116960.0,116950.0,0.73020067]
[1754752314424,1.04287732,116960.0,116950.0,1.06188068]
[1754752314822,0.3795173,116960.0,116950.0,1.06188068]
[1754752315018,0.71119731,116960.0,116950.0,1.06188068]
[1754752315323,1.04287732,116960.0,116950.0,1.06188068]
[1754752315521,0.71119731,116960.0,116950.0,1.06188068]
[1754752316326,1.04287732,116960.0,116950.0,1.06188068]
[1754752317923,0.3795173,116960.0,116950.0,1.06188068]
[1754752318124,1.04287732,116960.0,116950.0,1.06188068]
[1754752318321,1.04287732,116960.0,116950.0,0.73020067]
[1754752318523,1.04287732,116960.0,116950.0,1.06188068]
[1754752319425,0.3795173,116960.0,116950.0,1.06188068]
[1754752319624,1.04287732,116960.0,116950.0,1.06188068]
[1754752319825,1.04287732,116960.0,116950.0,0.97638868]
[1754752321123,0.3795173,116960.0,116950.0,0.97638868]
[1754752321322,0.3795173,116960.0,116950.0,1.06188068]
[1754752321323,1.04287732,116960.0,116950.0,1.06188068]
[1754752321521,0.71119731,116960.0,116950.0,0.73020067]
[1754752321722,0.71119731,116960.0,116950.0,1.06188068]
[1754752322026,0.71119731,116960.0,116950.0,0.97638868]
[1754752322425,1.04287732,116960.0,116950.0,1.06188068]
[1754752323321,1.04287732,116960.0,116950.0,0.97638868]
[1754752323625,1.04287732,116960.0,116950.0,0.64470867]
[1754752323824,1.04287732,116960.0,116950.0,0.97638868]
[1754752324024,1.04287732,116960.0,116950.0,0.64470867]
[1754752324226,1.04287732,116960.0,116950.0,0.97638868]
[1754752324422,0.3795173,116960.0,116950.0,0.97638868]
[1754752324625,1.04287732,116960.0,116950.0,0.97638868]
[1754752330028,1.04287732,116960.0,116950.0,0.64470867]
[1754752330231,1.04287732,116960.0,116950.0,0.97638868]
[1754752330930,0.3795173,116960.0,116950.0,0.64470867]
[1754752331231,1.04287732,116960.0,116950.0,0.64470867]
[1754752332230,0.3795173,116960.0,116950.0,0.64470867]
[1754752332530,1.04287732,116960.0,116950.0,0.64470867]
[1754752332732,1.04287732,116960.0,116950.0,0.4910078]
[1754752333430,1.04287732,116960.0,116950.0,0.82268781]
[1754752334024,1.04287732,116960.0,116950.0,0.4910078]
[1754752334228,1.04287732,116960.0,116950.0,0.82268781]
[1754752338638,1.04287732,116960.0,116950.0,0.4910078]
[1754752338831,1.04287732,116960.0,116950.0,0.82268781]
[1754752339335,1.04287732,116960.0,116950.0,0.97638868]
[1754752340737,0.3795173,116960.0,116950.0,0.97638868]
[1754752340934,1.04287732,116960.0,116950.0,0.64470867]
[1754752341135,1.04287732,116960.0,116950.0,0.97638868]
[1754752341334,1.04287732,116960.0,116950.0,0.64470867]
[1754752341535,1.04287732,116960.0,116950.0,0.97638868]
[1754752344943,1.04287732,116960.0,116950.0,0.64470867]
[1754752345141,1.04287732,116960.0,116950.0,0.97638868]
[1754752345839,0.3795173,116960.0,116950.0,0.64470867]
[1754752346040,1.04287732,116960.0,116950.0,0.97638868]
[1754752347244,0.3795173,116960.0,116950.0,0.97638868]
[1754752347444,1.04287732,116960.0,116950.0,0.97638868]
[1754752347744,0.3795173,116960.0,116950.0,0.97638868]
[1754752348042,1.04287732,116960.0,116950.0,0.64470867]
[1754752348744,0.3795173,116960.0,116950.0,0.64470867]
[1754752348944,1.04287732,116960.0,116950.0,0.64470867]
[1754752349846,1.04287732,116960.0,116950.0,0.82268781]
[1754752350439,1.04287732,116960.0,116950.0,0.4910078]
[1754752350745,1.04287732,116960.0,116950.0,0.97638868]
[1754752350944,1.04287732,116960.0,116950.0,0.64470867]
[1754752352946,1.04287732,116960.0,116950.0,0.97638868]
[1754752353144,0.3795173,116960.0,116950.0,0.97638868]
[1754752353342,1.04287732,116960.0,116950.0,1.06188028]
[1754752354645,1.04287732,116960.0,116950.0,0.97638868]
[1754752355548,1.04287732,116960.0,116950.0,1.06188028]
[1754752356247,1.04287732,116960.0,116950.0,0.97638868]
[1754752357450,0.3795173,116960.0,116950.0,0.97638868]
[1754752357643,0.3795173,116960.0,116950.0,1.06188028]
[1754752358249,0.71119731,116960.0,116950.0,1.06188028]
[1754752358847,1.04287732,116960.0,116950.0,1.06188028]
[1754752359850,0.71119731,116960.0,116950.0,1.06188028]
[1754752360450,0.3795173,116960.0,116950.0,1.06188028]
[1754752360854,0.71119731,116960.0,116950.0,1.06188028]
[1754752361649,1.04287732,116960.0,116950.0,1.06188028]
[1754752361850,0.71119731,116960.0,116950.0,1.06188028]
[1754752364356,0.71119731,116960.0,116950.0,0.73020027]
[1754752364543,0.71119731,116960.0,116950.0,1.06188028]
[1754752366159,0.71119731,116960.0,116950.0,1.42268028]
[1754752368959,0.3795173,116960.0,116950.0,1.42268028]
[1754752369360,0.71119731,116960.0,116950.0,1.42268028]
[1754752376466,1.04287732,116960.0,116950.0,1.42268028]
[1754752377063,0.61652731,116960.0,116950.0,1.42268028]
[1754752377461,0.2848473,116960.0,116950.0,1.42268028]
[1754752377759,0.71307731,116960.0,116950.0,1.42268028]
[1754752378867,0.3813973,116960.0,116950.0,1.42268028]
[1754752379067,0.71307731,116960.0,116950.0,1.42268028]
[1754752379564,0.0049,116960.0,116950.0,1.75436029]
[1754752379764,0.1956718,116970.0,116950.0,2.01083029]
[1754752379965,0.02471,116970.0,116960.0,1.91840432]
[1754752380163,0.2003545,116980.0,116970.0,0.085477]
[1754752380364,0.2003545,116980.0,116970.0,0.94888993]
[1754752380767,0.2336345,116980.0,116970.0,0.94888993]
[1754752381165,0.2356345,116980.0,116970.0,0.79518906]
[1754752381563,0.2989045,116980.0,116970.0,0.79518906]
[1754752381764,0.2989045,116980.0,116970.0,0.94890233]
[1754752383165,0.2999045,116980.0,116970.0,0.95190233]
[1754752383462,0.2979045,116980.0,116970.0,0.95190233]
[1754752383666,0.2979045,116980.0,116970.0,0.95490233]
[1754752385267,0.2979045,116980.0,116970.0,1.06982033]
[1754752386968,0.2979045,116980.0,116970.0,0.73814032]
[1754752387267,0.2979045,116980.0,116970.0,1.06982033]
[1754752388160,0.2979045,116980.0,116970.0,0.73814032]
[1754752388365,0.2979045,116980.0,116970.0,1.06982033]
[1754752391773,0.2979045,116980.0,116970.0,0.73814032]
[1754752391974,0.2979045,116980.0,116970.0,1.06982033]
[1754752395274,0.62958451,116980.0,116970.0,1.87846033]
[1754752395474,0.62958451,116980.0,116970.0,1.72474706]
[1754752395880,0.2979045,116980.0,116970.0,1.72474706]
[1754752396079,0.62958451,116980.0,116970.0,1.72474706]
[1754752398485,0.62958451,116980.0,116970.0,2.08554706]
[1754752399085,0.62958451,116980.0,116970.0,1.75386705]
[1754752399286,0.62958451,116980.0,116970.0,2.08554706]
[1754752399585,0.2979045,116980.0,116970.0,2.08554706]
[1754752399786,0.62958451,116980.0,116970.0,2.08554706]
[1754752400791,0.2979045,116980.0,116970.0,2.08554706]
[1754752400978,0.62958451,116980.0,116970.0,2.08554706]
[1754752401483,0.2979045,116980.0,116970.0,2.08554706]
[1754752401689,0.62958451,116980.0,116970.0,2.08554706]
[1754752402589,0.2979045,116980.0,116970.0,2.08554706]
[1754752403484,0.2829045,116980.0,116970.0,2.23926033]
[1754752404296,0.0057,116980.0,116970.0,2.41722707]
[1754752404789,0.3653266,117000.0,116990.0,0.0854623]
[1754752404990,0.3974766,117000.0,116990.0,2.43239137]
[1754752405193,0.3160154,117000.0,116990.0,2.21562936]
[1754752406090,0.2838654,117000.0,116990.0,2.21562936]
[1754752406287,0.2838654,117000.0,116990.0,2.21662936]
[1754752406883,0.2838654,117000.0,116990.0,2.21762936]
[1754752407491,0.2838654,117000.0,116990.0,2.28562156]
[1754752408189,0.2603754,117000.0,116990.0,2.61730157]
[1754752408392,0.2838654,117000.0,116990.0,2.61730157]
[1754752408890,0.2838654,117000.0,116990.0,2.46385252]
[1754752413896,0.2838654,117000.0,116990.0,2.61730157]
[1754752414297,0.1129457,117000.0,116990.0,2.61730157]
[1754752414799,0.004,117000.0,116990.0,2.61730157]
[1754752415300,0.02799,117000.0,116990.0,2.61730157]
[1754752415900,0.1134451,117000.0,116990.0,2.61730157]
[1754752416104,0.02799,117000.0,116990.0,2.61730157]
[1754752416600,0.02799,117000.0,116990.0,1.95394155]
[1754752416802,0.02799,117000.0,116990.0,2.61730157]
[1754752417703,0.113445,117000.0,116990.0,2.61730157]
[1754752418900,0.02799,117000.0,116990.0,2.61730157]
[1754752419302,0.02799,117000.0,116990.0,2.75920157]
[1754752419500,0.02799,117000.0,116990.0,2.61730157]
[1754752423405,0.1948762,117020.0,117010.0,0.0854477]
[1754752423603,0.1948762,117020.0,117010.0,1.94676771]
[1754752423804,0.1988762,117020.0,117010.0,1.94676771]
[1754752424197,0.1988762,117020.0,117010.0,1.63761278]
[1754752424396,0.1988762,117020.0,117010.0,1.96929279]
[1754752424793,0.1988762,117020.0,117010.0,1.97129279]
[1754752425404,0.2038762,117020.0,117010.0,2.08721079]
[1754752425906,0.63133621,117020.0,117010.0,2.08713079]
[1754752426101,0.2996562,117020.0,117010.0,2.08713079]
[1754752426302,0.2946562,117020.0,117010.0,2.08813079]
[1754752426502,0.2946562,117020.0,117010.0,1.28017079]
[1754752426706,0.2946562,117020.0,117010.0,2.08813079]
[1754752426905,0.62633621,117020.0,117010.0,2.08813079]
[1754752427101,0.62633621,117020.0,117010.0,1.28017089]
[1754752427306,0.62633621,117020.0,117010.0,2.08809089]
[1754752428111,0.62633621,117020.0,117010.0,1.19472309]
[1754752428408,0.62633621,117020.0,117010.0,1.64184309]
[1754752428609,0.62633621,117020.0,117010.0,1.72729089]
[1754752429008,0.62633621,117020.0,117010.0,1.64184309]
[1754752429610,0.62633621,117020.0,117010.0,1.72725079]
[1754752430109,0.62633621,117020.0,117010.0,1.64180309]
[1754752430710,0.62633621,117020.0,117010.0,1.72725089]
[1754752431311,0.2946562,117020.0,117010.0,1.72725089]
[1754752431511,0.62633621,117020.0,117010.0,1.72725089]
[1754752431708,0.2946562,117020.0,117010.0,1.39557088]
[1754752431908,0.62633621,117020.0,117010.0,1.72725089]
[1754752433308,0.62633621,117020.0,117010.0,1.39557088]
[1754752433506,0.62633621,117020.0,117010.0,1.72725089]
[1754752433912,0.62633621,117020.0,117010.0,1.39557088]
[1754752434210,0.62633621,117020.0,117010.0,1.72725089]
[1754752438708,0.62633621,117020.0,117010.0,1.88069994]
[1754752438907,0.62633621,117020.0,117010.0,1.79525214]
[1754752440114,0.62633621,117020.0,117010.0,1.88069994]
[1754752440409,0.62633621,117020.0,117010.0,1.79525214]
[1754752441711,0.62633621,117020.0,117010.0,1.46357213]
[1754752441910,0.62633621,117020.0,117010.0,1.88069994]
[1754752444314,0.62633621,117020.0,117010.0,1.51989994]
[1754752444516,0.62633621,117020.0,117010.0,1.88069994]
[1754752444816,0.2946562,117020.0,117010.0,1.54901993]
[1754752445022,0.62633621,117020.0,117010.0,1.88069994]
[1754752445420,0.2946562,117020.0,117010.0,1.88069994]
[1754752445622,0.62633621,117020.0,117010.0,1.88069994]
[1754752445827,0.2946562,117020.0,117010.0,1.88069994]
[1754752446122,0.62633621,117020.0,117010.0,1.88069994]
[1754752448212,0.62633621,117020.0,117010.0,1.54901993]
[1754752448414,0.62633621,117020.0,117010.0,1.88069994]
[1754752451621,0.2946562,117020.0,117010.0,1.72725089]
[1754752451818,0.62633621,117020.0,117010.0,1.72725089]
[1754752452219,0.2946562,117020.0,117010.0,1.72725089]
[1754752455422,0.1979962,117020.0,117010.0,2.0589309]
[1754752456123,0.1979962,117020.0,117010.0,1.72725089]
[1754752456318,0.2308362,117020.0,117010.0,1.72725089]
[1754752458222,0.2308362,117020.0,117010.0,1.88069994]
[1754752459225,0.1979962,117020.0,117010.0,1.88069994]
[1754752459724,0.2308362,117020.0,117010.0,1.88069994]
[1754752460227,0.2308362,117020.0,117010.0,1.54901993]
[1754752460426,0.2308362,117020.0,117010.0,1.88069994]
[1754752466130,0.2308362,117020.0,117010.0,1.54901993]
[1754752466325,0.2924262,117020.0,117010.0,1.54901993]
[1754752466527,0.2924262,117020.0,117010.0,1.88069994]
[1754752468021,0.2924262,117020.0,117010.0,1.54901993]
[1754752468430,0.2924262,117020.0,117010.0,1.88069994]
[1754752469133,0.2924262,117020.0,117010.0,1.54901993]
[1754752469331,0.2924262,117020.0,117010.0,1.88069994]
[1754752469630,0.2924262,117020.0,117010.0,1.72725089]
[1754752471234,0.2924262,117020.0,117010.0,1.88091769]
[1754752472135,0.2924262,117020.0,117010.0,1.89091769]
[1754752472932,0.2924262,117020.0,117010.0,1.73725089]
[1754752476233,0.2924262,117020.0,117010.0,1.73597089]
[1754752477635,0.2924262,117020.0,117010.0,0.92937089]
[1754752477840,0.2924262,117020.0,117010.0,1.73593089]
[1754752478042,0.2924262,117020.0,117010.0,0.92937089]
[1754752478541,0.2924262,117020.0,117010.0,1.73589089]
[1754752479341,0.2924262,117020.0,117010.0,0.92937089]
[1754752479540,0.2924262,117020.0,117010.0,1.73589089]
[1754752480545,0.2924262,117020.0,117010.0,1.40421088]
[1754752480942,0.2924262,117020.0,117010.0,1.73589089]
[1754752482747,0.2924262,117020.0,117010.0,1.40421088]
[1754752482942,0.2924262,117020.0,117010.0,1.73589089]
[1754752484640,0.87094622,117020.0,117010.0,0.59769088]
[1754752484846,0.62303621,117020.0,117010.0,1.73577109]
[1754752486543,0.2302762,117020.0,117010.0,1.73577109]
[1754752486747,0.1748862,117020.0,117010.0,2.0674511]
[1754752486948,0.1980062,117020.0,117010.0,2.0674511]
[1754752487149,0.1980062,117020.0,117010.0,1.73577109]
[1754752488150,0.62039061,117040.0,117030.0,0.0854334]
[1754752488350,0.68147061,117040.0,117030.0,1.58419341]
[1754752488849,0.70459061,117040.0,117030.0,1.58419341]
[1754752489050,0.193978,117040.0,117030.0,1.58419341]
[1754752489250,0.193978,117040.0,117030.0,1.91587342]
[1754752489448,0.193978,117040.0,117030.0,1.58419341]
[1754752489652,0.231398,117040.0,117030.0,1.2535134]
[1754752489848,0.292478,117040.0,117030.0,1.58519341]
[1754752490046,0.62415801,117040.0,117030.0,1.58515341]
[1754752490252,0.62415801,117040.0,117030.0,1.70007141]
[1754752490456,0.62415801,117040.0,117030.0,1.3683914]
[1754752490652,0.62415801,117040.0,117030.0,1.85378127]
[1754752492156,0.292478,117040.0,117030.0,1.85378127]
[1754752492348,0.62415801,117040.0,117030.0,1.85378127]
[1754752493061,0.62415801,117040.0,117030.0,1.76834787]
[1754752493358,0.62805801,117040.0,117030.0,0.96210787]
[1754752493561,0.95973802,117040.0,117030.0,0.63042786]
[1754752493761,0.95973802,117040.0,117030.0,1.282838]
[1754752493955,0.95973802,117040.0,117030.0,1.61451801]
[1754752494347,0.62805801,117040.0,117030.0,1.61451801]
[1754752496350,0.62805801,117040.0,117030.0,1.62451801]
[1754752498860,0.296378,117040.0,117030.0,1.62451801]
[1754752499055,0.62805801,117040.0,117030.0,1.62451801]
[1754752499256,0.62805801,117040.0,117030.0,1.70995141]
[1754752499661,0.296378,117040.0,117030.0,1.70995141]
[1754752499859,0.62805801,117040.0,117030.0,1.70995141]
[1754752500261,0.53455801,117040.0,117030.0,1.70995141]
[1754752500560,0.61350801,117040.0,117030.0,1.70995141]
[1754752500761,0.62805801,117040.0,117030.0,1.70995141]
[1754752500960,0.296378,117040.0,117030.0,1.70995141]
[1754752501456,0.202878,117040.0,117030.0,1.70995141]
[1754752502161,0.234378,117040.0,117030.0,1.70995141]
[1754752504060,0.202878,117040.0,117030.0,2.04163142]
[1754752504262,0.202878,117040.0,117030.0,1.70995141]
[1754752505056,0.179758,117040.0,117030.0,2.04163142]
[1754752505459,0.203368,117040.0,117030.0,2.04163142]
[1754752505960,0.203368,117040.0,117030.0,1.3782714]
[1754752506161,0.203368,117040.0,117030.0,1.70995141]
[1754752506563,0.202368,117040.0,117030.0,1.70995141]
[1754752506763,0.202368,117040.0,117030.0,1.3782714]
[1754752507061,0.202368,117040.0,117030.0,1.70995141]
[1754752507560,0.202368,117040.0,117030.0,1.70955141]
[1754752509362,0.202368,117040.0,117030.0,1.3778714]
[1754752509661,0.202368,117040.0,117030.0,1.70955141]
[1754752510965,0.202368,117040.0,117030.0,1.3778714]
[1754752511258,0.296348,117040.0,117030.0,1.70955141]
[1754752511763,0.58020801,117040.0,117030.0,1.70939191]
[1754752512062,0.62802801,117040.0,117030.0,1.70939191]
[1754752512562,0.296348,117040.0,117030.0,1.70939191]
[1754752512963,0.62802801,117040.0,117030.0,1.70939191]
[1754752513164,0.62802801,117040.0,117030.0,1.86310177]
[1754752513364,0.296348,117040.0,117030.0,1.86310177]
[1754752515165,0.62802801,117040.0,117030.0,1.86310177]
[1754752518359,0.296348,117040.0,117030.0,1.86310177]
[1754752518769,0.296348,117040.0,117030.0,1.70939191]
[1754752519070,0.296348,117040.0,117030.0,1.3777119]
[1754752519272,0.62802801,117040.0,117030.0,1.70939191]
[1754752519662,0.296348,117040.0,117030.0,1.70939191]
[1754752519858,0.296348,117040.0,117030.0,1.3777119]
[1754752520163,0.296348,117040.0,117030.0,1.70939191]
[1754752523673,0.282838,117040.0,117030.0,1.70939191]
[1754752524783,0.282838,117040.0,117030.0,2.04107192]
[1754752525577,0.282838,117040.0,117030.0,1.3777119]
[1754752525777,0.282838,117040.0,117030.0,2.04107192]
[1754752526371,0.282838,117040.0,117030.0,1.70939191]
[1754752526970,0.282838,117040.0,117030.0,1.86310177]
[1754752527378,0.282838,117040.0,117030.0,2.19478178]
[1754752527880,0.248528,117040.0,117030.0,2.19478178]
[1754752529181,0.202368,117040.0,117030.0,2.19478178]
[1754752530180,0.202368,117040.0,117030.0,2.04107192]
[1754752530779,0.3040868,117050.0,117040.0,0.1146964]
[1754752530780,0.2562679,117050.0,117040.0,0.1146964]
[1754752531079,0.2562679,117050.0,117040.0,1.13885642]
[1754752531675,0.2604679,117050.0,117040.0,1.29256628]